[Event "Late-Titled-Tuesday-Blitz-October-03-2023"]
[Site "Chess.com"]
[Date "2023.10.03"]
[Round "5"]
[White "Yushko_Olga"]
[Black "mestrefeitosa19"]
[Result "1-0"]
[WhiteElo "2113"]
[BlackElo "2260"]
[TimeControl "180+1"]
[EndTime "14:52:03 PDT"]
[Termination "Yushko_Olga won by resignation"]

1. d4 {[%clk 0:03:00]} 1... d5 {[%clk 0:02:59.6]} 2. c4 {[%clk 0:03:00.2]} 2...
e6 {[%clk 0:02:59.9]} 3. cxd5 {[%clk 0:03:00]} 3... exd5 {[%clk 0:03:00.8]} 4.
Nc3 {[%clk 0:03:00.6]} 4... Nf6 {[%clk 0:03:01.5]} 5. Nf3 {[%clk 0:03:00.9]}
5... Be7 {[%clk 0:03:02.2]} 6. Bg5 {[%clk 0:03:01.8]} 6... O-O {[%clk
0:03:02.1]} 7. e3 {[%clk 0:03:02.1]} 7... h6 {[%clk 0:03:02.5]} 8. Bh4 {[%clk
0:03:02.6]} 8... b6 {[%clk 0:02:51.9]} 9. Bd3 {[%clk 0:03:01.8]} 9... Bb7 {[%clk
0:02:52]} 10. Rc1 {[%clk 0:03:01.8]} 10... Nbd7 {[%clk 0:02:52.2]} 11. Bb1
{[%clk 0:03:00.6]} 11... c5 {[%clk 0:02:51.1]} 12. Qc2 {[%clk 0:03:01]} 12...
Ne4 {[%clk 0:02:39.9]} 13. Bg3 {[%clk 0:02:57.4]} 13... Ndf6 {[%clk 0:02:35.7]}
14. O-O {[%clk 0:02:49.7]} 14... Rc8 {[%clk 0:02:35.5]} 15. Qa4 {[%clk
0:02:34.3]} 15... Bc6 {[%clk 0:02:12.1]} 16. Qxa7 {[%clk 0:02:27.5]} 16... Ra8
{[%clk 0:02:11.2]} 17. Qc7 {[%clk 0:02:26.7]} 17... Nxc3 {[%clk 0:01:34.7]} 18.
Rxc3 {[%clk 0:02:20.5]} 18... Bb5 {[%clk 0:01:30.8]} 19. Rfc1 {[%clk 0:02:11.6]}
19... Rc8 {[%clk 0:01:14]} 20. Qxd8 {[%clk 0:02:03.6]} 20... Rfxd8 {[%clk
0:01:14.9]} 21. Bf5 {[%clk 0:01:58.3]} 21... Rc6 {[%clk 0:01:11.4]} 22. Ne5
{[%clk 0:01:56.6]} 22... Rc7 {[%clk 0:00:29.2]} 23. Nxf7 {[%clk 0:01:51.5]}
23... Ra7 {[%clk 0:00:26.9]} 24. Nxd8 {[%clk 0:01:50.3]} 24... Bxd8 {[%clk
0:00:27.8]} 25. dxc5 {[%clk 0:01:44.5]} 25... bxc5 {[%clk 0:00:18.1]} 26. Rxc5
{[%clk 0:01:44.2]} 26... Bc4 {[%clk 0:00:15]} 27. Rc8 {[%clk 0:01:42]} 1-0

[Event "Late-Titled-Tuesday-Blitz-October-03-2023"]
[Site "Chess.com"]
[Date "2023.10.03"]
[Round "5"]
[White "rdarruda"]
[Black "Quattroporte300"]
[Result "1-0"]
[WhiteElo "2468"]
[BlackElo "2343"]
[TimeControl "180+1"]
[EndTime "14:52:10 PDT"]
[Termination "rdarruda won by resignation"]

1. d4 {[%clk 0:02:48.1]} 1... d5 {[%clk 0:02:59.2]} 2. Nf3 {[%clk 0:02:47.4]}
2... g6 {[%clk 0:02:57.5]} 3. c4 {[%clk 0:02:45.8]} 3... dxc4 {[%clk 0:02:55.7]}
4. e4 {[%clk 0:02:44.6]} 4... Bg7 {[%clk 0:02:55.8]} 5. Bxc4 {[%clk 0:02:44.1]}
5... e6 {[%clk 0:02:54.1]} 6. Nc3 {[%clk 0:02:42.2]} 6... Ne7 {[%clk 0:02:54.6]}
7. Bg5 {[%clk 0:02:40.3]} 7... h6 {[%clk 0:02:53.2]} 8. Bh4 {[%clk 0:02:40.1]}
8... O-O {[%clk 0:02:52.2]} 9. Qd2 {[%clk 0:02:39.5]} 9... b6 {[%clk 0:02:44.7]}
10. O-O-O {[%clk 0:02:37.8]} 10... Bb7 {[%clk 0:02:43.9]} 11. Rhe1 {[%clk
0:02:37.7]} 11... a6 {[%clk 0:02:44]} 12. d5 {[%clk 0:02:33.5]} 12... b5 {[%clk
0:02:43.5]} 13. Bb3 {[%clk 0:02:32.9]} 13... b4 {[%clk 0:02:25.8]} 14. Na4
{[%clk 0:02:30.2]} 14... g5 {[%clk 0:02:19.4]} 15. Bg3 {[%clk 0:02:28.3]} 15...
exd5 {[%clk 0:02:18.5]} 16. exd5 {[%clk 0:02:24.8]} 16... Nf5 {[%clk 0:02:12.1]}
17. Nc5 {[%clk 0:02:20.5]} 17... Bc8 {[%clk 0:02:07.1]} 18. Be5 {[%clk
0:02:14.5]} 18... Nd7 {[%clk 0:02:05.8]} 19. Bxg7 {[%clk 0:02:09]} 19... Nxg7
{[%clk 0:02:02.3]} 20. Qxb4 {[%clk 0:02:08.2]} 20... Rb8 {[%clk 0:01:55.4]} 21.
Qc3 {[%clk 0:02:07.8]} 21... Nxc5 {[%clk 0:01:52.5]} 22. Qxc5 {[%clk 0:02:08.7]}
22... Bf5 {[%clk 0:01:48.4]} 23. Re7 {[%clk 0:01:54.9]} 23... Rb7 {[%clk
0:00:54.7]} 24. Nd4 {[%clk 0:01:51.3]} 24... Bg6 {[%clk 0:00:51.4]} 25. Nc6
{[%clk 0:01:46]} 25... Qc8 {[%clk 0:00:48.8]} 26. Re5 {[%clk 0:01:25.1]} 26...
Qg4 {[%clk 0:00:28.3]} 27. Ne7+ {[%clk 0:01:22.6]} 27... Kh7 {[%clk 0:00:28]}
28. Nxg6 {[%clk 0:01:20.8]} 28... Kxg6 {[%clk 0:00:25.9]} 29. Qxf8 {[%clk
0:01:20.2]} 29... Qf4+ {[%clk 0:00:22.1]} 30. Re3 {[%clk 0:01:20.1]} 1-0

[Event "Late-Titled-Tuesday-Blitz-October-03-2023"]
[Site "Chess.com"]
[Date "2023.10.03"]
[Round "5"]
[White "Rozhkov_V"]
[Black "RebecaJimnz"]
[Result "1-0"]
[WhiteElo "2441"]
[BlackElo "2209"]
[TimeControl "180+1"]
[EndTime "14:52:14 PDT"]
[Termination "Rozhkov_V won by checkmate"]

1. c4 {[%clk 0:03:00]} 1... c5 {[%clk 0:02:58]} 2. g3 {[%clk 0:02:59.8]} 2...
Nc6 {[%clk 0:02:58.3]} 3. Bg2 {[%clk 0:03:00.4]} 3... g6 {[%clk 0:02:58.3]} 4.
Nc3 {[%clk 0:03:01]} 4... Bg7 {[%clk 0:02:59]} 5. e3 {[%clk 0:03:01.6]} 5... d6
{[%clk 0:02:59.6]} 6. Nge2 {[%clk 0:03:02.1]} 6... e5 {[%clk 0:02:59.7]} 7. O-O
{[%clk 0:03:01.5]} 7... Be6 {[%clk 0:02:59.7]} 8. d3 {[%clk 0:03:01.3]} 8...
Nge7 {[%clk 0:02:59.4]} 9. Nd5 {[%clk 0:03:02]} 9... O-O {[%clk 0:02:57.5]} 10.
Nec3 {[%clk 0:03:02]} 10... f5 {[%clk 0:02:55]} 11. a3 {[%clk 0:02:58]} 11...
Qd7 {[%clk 0:02:55.1]} 12. Rb1 {[%clk 0:02:54.3]} 12... g5 {[%clk 0:02:34.1]}
13. f4 {[%clk 0:02:54.1]} 13... exf4 {[%clk 0:02:31.6]} 14. gxf4 {[%clk
0:02:53.2]} 14... g4 {[%clk 0:02:20.4]} 15. b4 {[%clk 0:02:51.4]} 15... Rae8
{[%clk 0:02:02.6]} 16. bxc5 {[%clk 0:02:24.6]} 16... dxc5 {[%clk 0:02:03.5]} 17.
Nxe7+ {[%clk 0:02:24.3]} 17... Rxe7 {[%clk 0:01:14.7]} 18. Nd5 {[%clk
0:02:21.7]} 18... Ree8 {[%clk 0:01:07.5]} 19. Bb2 {[%clk 0:02:22]} 19... b6
{[%clk 0:01:03.8]} 20. Qd2 {[%clk 0:02:04.4]} 20... Ne7 {[%clk 0:00:53]} 21.
Bxg7 {[%clk 0:02:01.2]} 21... Kxg7 {[%clk 0:00:53.6]} 22. Qc3+ {[%clk
0:02:01.5]} 22... Kg6 {[%clk 0:00:48.6]} 23. e4 {[%clk 0:02:01.8]} 23... Nxd5
{[%clk 0:00:42.4]} 24. cxd5 {[%clk 0:02:00.3]} 24... Bf7 {[%clk 0:00:36.4]} 25.
exf5+ {[%clk 0:01:55.1]} 25... Qxf5 {[%clk 0:00:34.5]} 26. Be4 {[%clk
0:01:55.1]} 26... Rxe4 {[%clk 0:00:34.4]} 27. dxe4 {[%clk 0:01:56]} 27... Qxe4
{[%clk 0:00:34.4]} 28. f5+ {[%clk 0:01:53.6]} 28... Kh5 {[%clk 0:00:27.3]} 29.
Qg7 {[%clk 0:01:45.3]} 29... Qe3+ {[%clk 0:00:15.6]} 30. Rf2 {[%clk 0:01:44.3]}
30... h6 {[%clk 0:00:13.8]} 31. Qxf8 {[%clk 0:01:34.5]} 31... Bxd5 {[%clk
0:00:13]} 32. Qf6 {[%clk 0:01:31]} 32... Qe4 {[%clk 0:00:13]} 33. Qg6+ {[%clk
0:01:30.7]} 33... Kh4 {[%clk 0:00:13.4]} 34. Qxh6# {[%clk 0:01:31.6]} 1-0

[Event "Late-Titled-Tuesday-Blitz-October-03-2023"]
[Site "Chess.com"]
[Date "2023.10.03"]
[Round "5"]
[White "SanchezKelvin"]
[Black "Dr_crypt"]
[Result "1-0"]
[WhiteElo "2571"]
[BlackElo "2437"]
[TimeControl "180+1"]
[EndTime "14:52:16 PDT"]
[Termination "SanchezKelvin won by resignation"]

1. e4 {[%clk 0:02:55.2]} 1... e5 {[%clk 0:02:51.3]} 2. Nf3 {[%clk 0:02:52.4]}
2... Nf6 {[%clk 0:02:51.7]} 3. Nc3 {[%clk 0:02:38.7]} 3... Nc6 {[%clk
0:02:49.7]} 4. d4 {[%clk 0:02:37.3]} 4... exd4 {[%clk 0:02:47.4]} 5. Nd5 {[%clk
0:02:37.6]} 5... d6 {[%clk 0:02:24.6]} 6. Bb5 {[%clk 0:01:51.3]} 6... Bd7 {[%clk
0:02:20.6]} 7. Bg5 {[%clk 0:01:46.7]} 7... Be7 {[%clk 0:02:18.9]} 8. Bxc6 {[%clk
0:01:33]} 8... bxc6 {[%clk 0:02:13.3]} 9. Nxe7 {[%clk 0:01:31.6]} 9... Qxe7
{[%clk 0:02:12.5]} 10. Bxf6 {[%clk 0:01:26.7]} 10... Qxe4+ {[%clk 0:02:06]} 11.
Kf1 {[%clk 0:01:19.1]} 11... gxf6 {[%clk 0:02:05.2]} 12. Qd2 {[%clk 0:01:18]}
12... O-O {[%clk 0:01:55]} 13. Re1 {[%clk 0:01:14.4]} 13... Qg6 {[%clk
0:01:48.4]} 14. Re7 {[%clk 0:01:11]} 14... Rad8 {[%clk 0:01:37.8]} 15. h4 {[%clk
0:01:08.6]} 15... c5 {[%clk 0:01:32.6]} 16. h5 {[%clk 0:01:04.8]} 16... Qg7
{[%clk 0:01:25]} 17. Rxd7 {[%clk 0:00:50.4]} 17... Rxd7 {[%clk 0:01:24.5]} 18.
Rh3 {[%clk 0:00:51]} 18... f5 {[%clk 0:01:01.5]} 19. Rg3 {[%clk 0:00:49.3]}
19... f6 {[%clk 0:01:01.6]} 20. Rxg7+ {[%clk 0:00:44]} 20... Rxg7 {[%clk
0:01:02.5]} 21. Qf4 {[%clk 0:00:43.5]} 21... Re7 {[%clk 0:01:00]} 22. Qxf5
{[%clk 0:00:40.3]} 22... Re5 {[%clk 0:00:59.8]} 23. Nxe5 {[%clk 0:00:36.9]}
23... fxe5 {[%clk 0:00:59.4]} 24. Qe6+ {[%clk 0:00:35.4]} 24... Kg7 {[%clk
0:00:55.8]} 25. h6+ {[%clk 0:00:35.1]} 25... Kh8 {[%clk 0:00:55]} 26. Qe7 {[%clk
0:00:35]} 1-0

[Event "Late-Titled-Tuesday-Blitz-October-03-2023"]
[Site "Chess.com"]
[Date "2023.10.03"]
[Round "5"]
[White "KaydenTroffChess"]
[Black "MathiasWomacka"]
[Result "1-0"]
[WhiteElo "2752"]
[BlackElo "2523"]
[TimeControl "180+1"]
[EndTime "14:52:21 PDT"]
[Termination "KaydenTroffChess won on time"]

1. d4 {[%clk 0:03:00.9]} 1... Nf6 {[%clk 0:02:58.9]} 2. Nf3 {[%clk 0:03:00.7]}
2... e6 {[%clk 0:02:58.7]} 3. Bf4 {[%clk 0:02:59.6]} 3... c5 {[%clk 0:02:57.3]}
4. e3 {[%clk 0:02:59.2]} 4... d5 {[%clk 0:02:57.7]} 5. Nc3 {[%clk 0:02:58.9]}
5... Bd6 {[%clk 0:02:45.4]} 6. dxc5 {[%clk 0:02:55.3]} 6... Bxf4 {[%clk
0:02:31.1]} 7. exf4 {[%clk 0:02:56]} 7... Qa5 {[%clk 0:02:30.8]} 8. Qd4 {[%clk
0:02:55.9]} 8... Nc6 {[%clk 0:02:20.9]} 9. Bb5 {[%clk 0:02:48.5]} 9... O-O
{[%clk 0:02:13.2]} 10. Bxc6 {[%clk 0:02:47]} 10... bxc6 {[%clk 0:02:14.1]} 11.
O-O {[%clk 0:02:45.5]} 11... Rb8 {[%clk 0:02:05.7]} 12. Rfb1 {[%clk 0:02:38.7]}
12... Rb4 {[%clk 0:01:43.3]} 13. Qe3 {[%clk 0:02:24.2]} 13... d4 {[%clk
0:01:31.8]} 14. Nxd4 {[%clk 0:02:19.5]} 14... Qxc5 {[%clk 0:01:32.3]} 15. Nb3
{[%clk 0:02:06.4]} 15... Qd6 {[%clk 0:01:07.2]} 16. g3 {[%clk 0:01:56.1]} 16...
Nd5 {[%clk 0:00:49.2]} 17. Rd1 {[%clk 0:01:26.9]} 17... Ba6 {[%clk 0:00:15.6]}
18. Qxa7 {[%clk 0:01:16.5]} 18... Bc4 {[%clk 0:00:13.6]} 19. Qc5 {[%clk
0:01:16.3]} 19... Qxc5 {[%clk 0:00:08.8]} 20. Nxc5 {[%clk 0:01:17.2]} 20... Rxb2
{[%clk 0:00:08.4]} 21. N3e4 {[%clk 0:01:10.2]} 21... Ra8 {[%clk 0:00:06.2]} 22.
a4 {[%clk 0:01:05.1]} 1-0

[Event "Late-Titled-Tuesday-Blitz-October-03-2023"]
[Site "Chess.com"]
[Date "2023.10.03"]
[Round "5"]
[White "Kosak12"]
[Black "Nf3c5"]
[Result "1-0"]
[WhiteElo "2805"]
[BlackElo "2596"]
[TimeControl "180+1"]
[EndTime "14:52:31 PDT"]
[Termination "Kosak12 won on time"]

1. d4 {[%clk 0:02:54.7]} 1... Nf6 {[%clk 0:02:53.3]} 2. Nf3 {[%clk 0:02:53.2]}
2... e6 {[%clk 0:02:51.7]} 3. e3 {[%clk 0:02:52.5]} 3... b6 {[%clk 0:02:48.2]}
4. Bd3 {[%clk 0:02:48.2]} 4... Bb7 {[%clk 0:02:48.6]} 5. O-O {[%clk 0:02:46.1]}
5... c5 {[%clk 0:02:49.1]} 6. c4 {[%clk 0:02:46.3]} 6... Be7 {[%clk 0:02:46.6]}
7. Nc3 {[%clk 0:02:46]} 7... cxd4 {[%clk 0:02:47.1]} 8. exd4 {[%clk 0:02:46.2]}
8... d5 {[%clk 0:02:47.8]} 9. cxd5 {[%clk 0:02:46.6]} 9... Nxd5 {[%clk
0:02:48.5]} 10. Ne5 {[%clk 0:02:47.3]} 10... O-O {[%clk 0:02:48.1]} 11. Qg4
{[%clk 0:02:47.5]} 11... f5 {[%clk 0:01:39.4]} 12. Qe2 {[%clk 0:02:47.5]} 12...
Bf6 {[%clk 0:01:11.7]} 13. Re1 {[%clk 0:02:40.5]} 13... Re8 {[%clk 0:01:08]} 14.
Bb5 {[%clk 0:02:36.3]} 14... Re7 {[%clk 0:01:05]} 15. Bc4 {[%clk 0:02:25.7]}
15... Nc6 {[%clk 0:00:59.4]} 16. Nxc6 {[%clk 0:02:07.8]} 16... Bxc6 {[%clk
0:00:57.8]} 17. Be3 {[%clk 0:02:04.2]} 17... Rc8 {[%clk 0:00:54.3]} 18. Rac1
{[%clk 0:02:00.5]} 18... Bb7 {[%clk 0:00:45.6]} 19. Bxd5 {[%clk 0:01:59.1]}
19... Bxd5 {[%clk 0:00:41.6]} 20. Nxd5 {[%clk 0:01:59.2]} 20... exd5 {[%clk
0:00:42.5]} 21. Qf3 {[%clk 0:01:55.3]} 21... Rxc1 {[%clk 0:00:39.5]} 22. Rxc1
{[%clk 0:01:56.2]} 22... g6 {[%clk 0:00:39.1]} 23. h3 {[%clk 0:01:54.7]} 23...
Kf7 {[%clk 0:00:38.2]} 24. h4 {[%clk 0:01:45.9]} 24... h5 {[%clk 0:00:36.9]} 25.
Rc6 {[%clk 0:01:40.8]} 25... Qd7 {[%clk 0:00:34.9]} 26. Rxf6+ {[%clk 0:01:35.9]}
26... Kxf6 {[%clk 0:00:35.4]} 27. Bg5+ {[%clk 0:01:36.6]} 27... Kf7 {[%clk
0:00:36]} 28. Bxe7 {[%clk 0:01:36.9]} 28... Kxe7 {[%clk 0:00:36.9]} 29. Qg3
{[%clk 0:01:36.8]} 29... Kf7 {[%clk 0:00:34.6]} 30. Qe5 {[%clk 0:01:36.1]} 30...
Qc6 {[%clk 0:00:31]} 31. Kh2 {[%clk 0:01:35.3]} 31... Qe6 {[%clk 0:00:23.6]} 32.
Kg3 {[%clk 0:01:31.3]} 32... Qxe5+ {[%clk 0:00:10.8]} 33. dxe5 {[%clk 0:01:32]}
33... Ke6 {[%clk 0:00:11.3]} 34. f4 {[%clk 0:01:31.9]} 34... d4 {[%clk
0:00:07.5]} 35. Kf3 {[%clk 0:01:31.9]} 35... Kd5 {[%clk 0:00:08.4]} 36. Ke2
{[%clk 0:01:32]} 36... b5 {[%clk 0:00:07.6]} 37. b4 {[%clk 0:01:30.5]} 1-0

[Event "Late-Titled-Tuesday-Blitz-October-03-2023"]
[Site "Chess.com"]
[Date "2023.10.03"]
[Round "5"]
[White "GoldenShare"]
[Black "Zurability"]
[Result "1-0"]
[WhiteElo "2580"]
[BlackElo "2712"]
[TimeControl "180+1"]
[EndTime "14:52:34 PDT"]
[Termination "GoldenShare won on time"]

1. e4 {[%clk 0:03:00.2]} 1... c5 {[%clk 0:02:59]} 2. Nc3 {[%clk 0:02:59.9]} 2...
Nc6 {[%clk 0:02:51.2]} 3. Bb5 {[%clk 0:03:00.1]} 3... Nd4 {[%clk 0:02:47.7]} 4.
Nf3 {[%clk 0:03:00.3]} 4... Nxb5 {[%clk 0:02:47.6]} 5. Nxb5 {[%clk 0:03:01.2]}
5... a6 {[%clk 0:02:38]} 6. Nc3 {[%clk 0:03:00.5]} 6... g6 {[%clk 0:02:14.7]} 7.
d4 {[%clk 0:03:00.7]} 7... Bg7 {[%clk 0:02:14.9]} 8. dxc5 {[%clk 0:03:00.9]}
8... Qc7 {[%clk 0:02:03.9]} 9. Nd5 {[%clk 0:02:58.6]} 9... Qc6 {[%clk
0:01:38.8]} 10. Be3 {[%clk 0:02:47.2]} 10... Nf6 {[%clk 0:01:36.4]} 11. Ne5
{[%clk 0:02:12.5]} 11... Nxd5 {[%clk 0:01:19.1]} 12. Nxc6 {[%clk 0:02:07.4]}
12... Nxe3 {[%clk 0:01:18.9]} 13. fxe3 {[%clk 0:02:02.9]} 13... dxc6 {[%clk
0:01:18.4]} 14. c3 {[%clk 0:01:57.1]} 14... O-O {[%clk 0:01:16.7]} 15. O-O
{[%clk 0:01:56.2]} 15... Be6 {[%clk 0:01:16.7]} 16. Qe2 {[%clk 0:01:55.7]} 16...
a5 {[%clk 0:01:13.7]} 17. Rfd1 {[%clk 0:01:54.7]} 17... a4 {[%clk 0:01:11.1]}
18. a3 {[%clk 0:01:49.3]} 18... Ra5 {[%clk 0:01:06.8]} 19. Rd4 {[%clk
0:01:48.2]} 19... Bb3 {[%clk 0:00:50.9]} 20. Rb4 {[%clk 0:01:44.3]} 20... Rb8
{[%clk 0:00:51.2]} 21. Rd1 {[%clk 0:01:37.7]} 21... Bxd1 {[%clk 0:00:46.8]} 22.
Qxd1 {[%clk 0:01:38.6]} 22... Rxc5 {[%clk 0:00:39]} 23. Qd7 {[%clk 0:01:38.5]}
23... Bh6 {[%clk 0:00:17.3]} 24. Kf2 {[%clk 0:01:32.1]} 24... Bg5 {[%clk
0:00:11.9]} 25. Rxb7 {[%clk 0:01:32.2]} 25... Rxb7 {[%clk 0:00:05.6]} 26. Qxb7
{[%clk 0:01:32.4]} 26... Rb5 {[%clk 0:00:06.5]} 27. Qxc6 {[%clk 0:01:31.1]}
27... Rxb2+ {[%clk 0:00:06.3]} 28. Kf3 {[%clk 0:01:31.7]} 28... Rb3 {[%clk
0:00:05.6]} 29. Qa8+ {[%clk 0:01:24.1]} 29... Kg7 {[%clk 0:00:05.3]} 30. Qxa4
{[%clk 0:01:24.4]} 30... Rxc3 {[%clk 0:00:04.3]} 31. Qd4+ {[%clk 0:01:23.8]}
31... Bf6 {[%clk 0:00:04]} 32. e5 {[%clk 0:01:24.2]} 1-0

[Event "Late-Titled-Tuesday-Blitz-October-03-2023"]
[Site "Chess.com"]
[Date "2023.10.03"]
[Round "5"]
[White "onnoelgersma"]
[Black "IngOscarArdila"]
[Result "0-1"]
[WhiteElo "2527"]
[BlackElo "2339"]
[TimeControl "180+1"]
[EndTime "14:52:36 PDT"]
[Termination "IngOscarArdila won on time"]

1. e4 {[%clk 0:02:59.6]} 1... e5 {[%clk 0:03:00.4]} 2. Nf3 {[%clk 0:02:58.7]}
2... Nf6 {[%clk 0:03:00.8]} 3. Nxe5 {[%clk 0:02:54.1]} 3... d6 {[%clk
0:03:00.9]} 4. Nf3 {[%clk 0:02:53.6]} 4... Nxe4 {[%clk 0:03:01.3]} 5. d3 {[%clk
0:02:53.1]} 5... Nf6 {[%clk 0:03:01.3]} 6. d4 {[%clk 0:02:52.9]} 6... Bg4 {[%clk
0:03:01.1]} 7. Bd3 {[%clk 0:02:50.8]} 7... Be7 {[%clk 0:03:01.3]} 8. h3 {[%clk
0:02:49.6]} 8... Bh5 {[%clk 0:03:01.1]} 9. Bg5 {[%clk 0:02:43.1]} 9... O-O
{[%clk 0:03:00.7]} 10. Nbd2 {[%clk 0:02:40]} 10... Nd5 {[%clk 0:02:57.1]} 11.
Bxe7 {[%clk 0:02:37.4]} 11... Qxe7+ {[%clk 0:02:58]} 12. Qe2 {[%clk 0:02:29.2]}
12... Re8 {[%clk 0:02:53.7]} 13. Qxe7 {[%clk 0:02:24.4]} 13... Rxe7+ {[%clk
0:02:54.6]} 14. Kf1 {[%clk 0:02:22.7]} 14... Nf4 {[%clk 0:02:54.5]} 15. g4
{[%clk 0:02:22.1]} 15... Nxd3 {[%clk 0:02:36.5]} 16. cxd3 {[%clk 0:02:23]} 16...
Bg6 {[%clk 0:02:36.2]} 17. Kg2 {[%clk 0:02:12.3]} 17... Nc6 {[%clk 0:02:35.2]}
18. d5 {[%clk 0:02:08.4]} 18... Nb4 {[%clk 0:02:20.3]} 19. d4 {[%clk 0:02:06.3]}
19... Nxd5 {[%clk 0:02:19.1]} 20. Rae1 {[%clk 0:01:59.9]} 20... Rae8 {[%clk
0:02:18.9]} 21. Rxe7 {[%clk 0:01:57.7]} 21... Rxe7 {[%clk 0:02:19.2]} 22. Re1
{[%clk 0:01:58]} 22... Kf8 {[%clk 0:02:15.4]} 23. Rxe7 {[%clk 0:01:39.3]} 23...
Kxe7 {[%clk 0:02:14.9]} 24. Kg3 {[%clk 0:01:31.5]} 24... Nb4 {[%clk 0:02:11.5]}
25. a3 {[%clk 0:01:27]} 25... Nd3 {[%clk 0:02:08.2]} 26. b3 {[%clk 0:01:22.2]}
26... f6 {[%clk 0:01:58.4]} 27. Nh4 {[%clk 0:01:07]} 27... Ke6 {[%clk
0:01:52.4]} 28. f4 {[%clk 0:01:06.1]} 28... Kd5 {[%clk 0:01:51.1]} 29. f5 {[%clk
0:01:04]} 29... Bf7 {[%clk 0:01:46.7]} 30. Nhf3 {[%clk 0:01:03.2]} 30... c5
{[%clk 0:01:38.6]} 31. dxc5 {[%clk 0:00:59.9]} 31... dxc5 {[%clk 0:01:39]} 32.
h4 {[%clk 0:00:50.6]} 32... Ne5 {[%clk 0:01:39.1]} 33. g5 {[%clk 0:00:43.5]}
33... Nxf3 {[%clk 0:01:38.2]} 34. Nxf3 {[%clk 0:00:41.6]} 34... Ke4 {[%clk
0:01:35.1]} 35. h5 {[%clk 0:00:38.2]} 35... Bxh5 {[%clk 0:01:31]} 0-1

[Event "Late-Titled-Tuesday-Blitz-October-03-2023"]
[Site "Chess.com"]
[Date "2023.10.03"]
[Round "5"]
[White "Lennis93"]
[Black "Haykoooo0o"]
[Result "1-0"]
[WhiteElo "2714"]
[BlackElo "2452"]
[TimeControl "180+1"]
[EndTime "14:52:38 PDT"]
[Termination "Lennis93 won by resignation"]

1. c4 {[%clk 0:03:00.9]} 1... c6 {[%clk 0:02:41]} 2. g3 {[%clk 0:03:01.4]} 2...
d5 {[%clk 0:02:40.2]} 3. Bg2 {[%clk 0:03:01.8]} 3... Nf6 {[%clk 0:02:40.3]} 4.
Nf3 {[%clk 0:03:01.5]} 4... Bf5 {[%clk 0:02:40.6]} 5. Qb3 {[%clk 0:03:00.4]}
5... Qb6 {[%clk 0:02:40.3]} 6. cxd5 {[%clk 0:03:00.9]} 6... Qxb3 {[%clk
0:02:40]} 7. axb3 {[%clk 0:03:00.9]} 7... cxd5 {[%clk 0:02:40.7]} 8. Nc3 {[%clk
0:03:00.8]} 8... Nc6 {[%clk 0:02:40.8]} 9. Nb5 {[%clk 0:03:01]} 9... Rc8 {[%clk
0:02:38.9]} 10. O-O {[%clk 0:02:50.3]} 10... a6 {[%clk 0:02:38.8]} 11. Nbd4
{[%clk 0:02:50.7]} 11... Nxd4 {[%clk 0:02:39.2]} 12. Nxd4 {[%clk 0:02:51.6]}
12... Bg6 {[%clk 0:02:39.1]} 13. d3 {[%clk 0:02:46]} 13... e6 {[%clk 0:02:39.3]}
14. Bd2 {[%clk 0:02:46.4]} 14... Bc5 {[%clk 0:02:37.7]} 15. Bc3 {[%clk
0:02:40.6]} 15... O-O {[%clk 0:02:34.2]} 16. b4 {[%clk 0:02:41]} 16... Bb6
{[%clk 0:02:29.7]} 17. b5 {[%clk 0:02:29.2]} 17... e5 {[%clk 0:01:36.5]} 18. Nf3
{[%clk 0:02:27]} 18... e4 {[%clk 0:01:31.5]} 19. dxe4 {[%clk 0:02:11.5]} 19...
dxe4 {[%clk 0:01:31.4]} 20. Nd4 {[%clk 0:02:06.5]} 20... e3 {[%clk 0:01:15.1]}
21. Bxb7 {[%clk 0:02:01.4]} 21... exf2+ {[%clk 0:01:09.5]} 22. Kg2 {[%clk
0:02:00.9]} 22... Rcd8 {[%clk 0:01:06.9]} 23. bxa6 {[%clk 0:01:58.1]} 23... Bxd4
{[%clk 0:00:22]} 24. Bxd4 {[%clk 0:01:57.8]} 24... Rxd4 {[%clk 0:00:21.8]} 25.
a7 {[%clk 0:01:57.3]} 25... Be4+ {[%clk 0:00:11.2]} 26. Bxe4 {[%clk 0:01:56.4]}
26... Rxe4 {[%clk 0:00:10.6]} 27. a8=Q {[%clk 0:01:56.4]} 27... Rxa8 {[%clk
0:00:10.5]} 28. Rxa8+ {[%clk 0:01:56.9]} 28... Re8 {[%clk 0:00:09.7]} 29. Rxe8+
{[%clk 0:01:55.8]} 29... Nxe8 {[%clk 0:00:10.6]} 30. Kxf2 {[%clk 0:01:55.3]}
30... Kf8 {[%clk 0:00:11.5]} 31. Rd1 {[%clk 0:01:54.2]} 31... Ke7 {[%clk
0:00:12.4]} 32. b4 {[%clk 0:01:54.7]} 32... Nc7 {[%clk 0:00:12.8]} 33. e4 {[%clk
0:01:53.9]} 33... f6 {[%clk 0:00:12.8]} 34. Ke3 {[%clk 0:01:54.1]} 34... Ke6
{[%clk 0:00:12.4]} 35. Rd8 {[%clk 0:01:53.8]} 35... Nb5 {[%clk 0:00:11.5]} 36.
Rd5 {[%clk 0:01:49.9]} 36... Nd6 {[%clk 0:00:10.5]} 37. b5 {[%clk 0:01:48.4]}
37... h6 {[%clk 0:00:07.5]} 38. Kd4 {[%clk 0:01:45.2]} 38... Nf7 {[%clk
0:00:02.9]} 39. b6 {[%clk 0:01:44.9]} 39... Ne5 {[%clk 0:00:03.8]} 40. b7 {[%clk
0:01:44.1]} 40... g5 {[%clk 0:00:01.8]} 41. Rxe5+ {[%clk 0:01:42.9]} 41... fxe5+
{[%clk 0:00:02.7]} 42. Kc5 {[%clk 0:01:43.5]} 42... Kd7 {[%clk 0:00:03.2]} 43.
b8=Q {[%clk 0:01:43.7]} 43... Ke6 {[%clk 0:00:04.1]} 44. Qd6+ {[%clk 0:01:43.8]}
1-0